[Event "Int SVK-ch GM 2020"]
[Site "Drienica"]
[Date "2020.08.07"]
[Round "1.2"]
[White "Nayhebaver, Martin"]
[Black "Druska, Juraj"]
[Result "1-0"]
[ECO "C02"]
[WhiteElo "2482"]
[BlackElo "2515"]
[Annotator "ChessBase"]
[PlyCount "73"]
[EventDate "2020.08.07"]
[EventType "tourn"]
[EventCountry "SVK"]
[SourceTitle "playchess.com"]
[Source "ChessBase"]
[SourceQuality "1"]
[TimeControl "40/5400+30:1800+30"]

1. e4 {[%emt 0:00:00]} e6 {[%emt 0:00:00]} 2. d4 {[%emt 0:00:02]} d5 {[%emt 0:00:00]} 3. e5 {[%emt 0:00:40]} c5 {[%emt 0:00:51]} 4. c3 {[%emt 0:00:22]} Nc6 {[%emt 0:00:10]} 5. Nf3 {[%emt 0:00:24]} Bd7 {[%emt 0:01:44]} 6. a3 {[%emt 0:00:56]} f6 {[%emt 0:00:27]} 7. Bd3 {[%emt 0:00:34]} Qc7 {[%emt 0:19:07]} 8. O-O {[%emt 0:01:23]} c4 {[%emt 0:10:15]} 9. Bc2 {[%emt 0:03:21]} f5 {[%emt 0:00:37]} 10. Nbd2 {[%emt 0:06:22]} Nge7 {[%emt 0:16:33]} 11. b3 {[%emt 0:05:20]} Na5 {[%emt 0:11:42]} 12. a4 {[%emt 0:13:03]} b6 {[%emt 0:14:25]} 13. Re1 {[%emt 0:05:29]} Rc8 {[%emt 0:04:57]} 14. b4 {[%emt 0:03:36]} Nac6 {[%emt 0:00:48]} 15. h4 {[%emt 0:02:32]} a5 {[%emt 0:05:56]} 16. b5 {[%emt 0:07:07]} Nd8 {[%emt 0:00:22]} 17. Nf1 {[%emt 0:04:50]} Nf7 {[%emt 0:00:11]} 18. Ng3 {[%emt 0:02:56]} g6 {[%emt 0:00:23]} 19. Ne2 {[%emt 0:01:35]} Bh6 {[%emt 0:09:00]} 20. Ng5 {[%emt 0:04:30]} Nxg5 {[%emt 0:01:19]} 21. hxg5 {[%emt 0:00:14]} Bg7 {[%emt 0:00:31]} 22. Nf4 {[%emt 0:09:43]} Kf7 {[%emt 0:00:09]} 23. Ba3 {[%emt 0:03:54]} Rcf8 {[%emt 0:01:13]} 24. g4 {[%emt 0:01:03]} fxg4 {[%emt 0:00:17]} 25. Qxg4 {[%emt 0:00:45]} Qc8 {[%emt 0:00:12]} 26. Re3 {[%emt 0:02:57]} Ke8 {[%emt 0:00:45]} 27. Rh3 {[%emt 0:00:48]} Rf7 {[%emt 0:00:00]} 28. Bxe7 {[%emt 0:03:02]} Kxe7 {[%emt 0:00:41]} 29. Re1 {[%emt 0:00:06]} Qa8 {[%emt 0:01:23]} 30. Nxd5+ {[%emt 0:00:26]} Kf8 {[%emt 0:00:30]} 31. Nxb6 {[%emt 0:00:57]} Qd8 {[%emt 0:00:21]} 32. Nxc4 {[%emt 0:00:29]} Rf5 {[%emt 0:00:40]} 33. f4 {[%emt 0:02:10]} Kg8 {[%emt 0:00:28]} 34. Nd6 {[%emt 0:00:13]} Bf8 {[%emt 0:00:06]} 35. Nxf5 {[%emt 0:01:08]} gxf5 {[%emt 0:00:11]} 36. Qg2 {[%emt 0:00:14]} Qe7 {[%emt 0:00:27]} 37. Bb3 {[%emt 0:01:21]} 1-0

[Event "Int SVK-ch GM 2020"]
[Site "Drienica"]
[Date "2020.08.07"]
[Round "1.4"]
[White "Jablonicky, Martin"]
[Black "Jurcik, Marian"]
[Result "1-0"]
[ECO "C78"]
[WhiteElo "2314"]
[BlackElo "2441"]
[Annotator "RC"]
[PlyCount "85"]
[EventDate "2020.08.07"]
[EventType "tourn"]
[EventCountry "SVK"]
[SourceTitle "playchess.com"]
[Source "ChessBase"]
[SourceQuality "1"]
[TimeControl "40/5400+30:1800+30"]

1. e4 {[%emt 0:06:58]} e5 {[%emt 0:00:00]} 2. Nf3 {[%emt 0:00:10]} Nc6 {[%emt 0:00:00]} 3. Bb5 {[%emt 0:00:37]} a6 {[%emt 0:00:10]} 4. Ba4 {[%emt 0:00:06]} Nf6 {[%emt 0:00:17]} 5. O-O {[%emt 0:01:06]} b5 {[%emt 0:00:25]} 6. Bb3 {[%emt 0:00:07]} Bc5 {[%emt 0:00:14]} 7. d3 {[%emt 0:03:53]} O-O {[%emt 0:04:08]} 8. Nc3 {[%emt 0:01:42]} d6 {[%emt 0:05:41]} 9. Bg5 {[%emt 0:04:21]} h6 {[%emt 0:19:26]} 10. Bh4 {[%emt 0:00:05]} Nd4 {[%emt 0:02:06]} 11. Nd5 {[%emt 0:11:44]} Nxb3 {[%emt 0:06:47]} 12. Nxf6+ {[%emt 0:01:54]} gxf6 {[%emt 0:00:14]} 13. axb3 {[%emt 0:00:04]} Qe7 {[%emt 0:04:03]} 14. Nd2 {[%emt 0:05:16]} Qe6 {[%emt 0:04:51]} 15. Kh1 {[%emt 0:04:15]} Qg4 {[%emt 0:18:32]} 16. Qxg4+ {[%emt 0:00:59]} Bxg4 {[%emt 0:00:03]} 17. h3 {[%emt 0:00:29]} Be6 {[%emt 0:01:54]} 18. Bxf6 {[%emt 0:00:12]} a5 {[%emt 0:01:26]} 19. c3 {[%emt 0:05:06]} b4 {[%emt 0:17:15]} 20. d4 {[%emt 0:03:17]} bxc3 {[%emt 0:02:53]} 21. bxc3 {[%emt 0:00:06]} Bb6 {[%emt 0:03:51]} 22. d5 {[%emt 0:04:30]} Bd7 {[%emt 0:00:14]} 23. Nc4 {[%emt 0:00:26]} Rfb8 {[%emt 0:04:03]} 24. f4 {[%emt 0:01:02]} exf4 {[%emt 0:01:09]} 25. Rxf4 {[%emt 0:00:08]} Bc5 {[%emt 0:01:27]} 26. Rf3 {[%emt 0:08:03]} Kh7 {[%emt 0:01:14]} 27. Rxa5 {[%emt 0:00:54]} Rxa5 {[%emt 0:00:27]} 28. Nxa5 {[%emt 0:00:02]} Ra8 {[%emt 0:00:39]} 29. b4 {[%emt 0:01:42]} Bb6 {[%emt 0:00:19]} 30. e5 {[%emt 0:12:08]} h5 {[%emt 0:00:41]} 31. Nc4 {[%emt 0:05:50]} Ra1+ {[%emt 0:00:27]} 32. Kh2 {[%emt 0:00:06]} Bg1+ {[%emt 0:00:20]} 33. Kg3 {[%emt 0:00:17]} Rd1 {[%emt 0:00:41]} 34. Bd8 {[%emt 0:03:48]} Bb5 {[%emt 0:00:30]} 35. exd6 {[%emt 0:10:21]} cxd6 {[%emt 0:00:30]} 36. Nxd6 {[%emt 0:00:47]} Be2 {[%emt 0:00:26]} 37. Rxf7+ {[%emt 0:00:56]} Kg8 {[%emt 0:00:02]} 38. Re7 {[%emt 0:01:45]} Rd3+ {[%emt 0:00:27]} 39. Kh4 {[%emt 0:01:14]} Bf2+ {[%emt 0:00:23]} 40. Kg5 {[%emt 0:02:49]} Rxd5+ {[%emt 0:00:25]} 41. Kf4 {[%emt 0:30:40]} Bd3 {[%emt 0:10:59]} 42. Re8+ {[%emt 0:00:00]} Kh7 {[%emt 0:01:14]} 43. Ne4 {[%emt 0:00:00]} 1-0

[Event "Int SVK-ch GM 2020"]
[Site "Drienica"]
[Date "2020.08.10"]
[Round "4.1"]
[White "Gazik, Viktor"]
[Black "Jurcik, Marian"]
[Result "1-0"]
[ECO "E91"]
[WhiteElo "2502"]
[BlackElo "2441"]
[Annotator "ChessBase"]
[PlyCount "70"]
[EventDate "2020.08.07"]
[EventType "tourn"]
[EventCountry "SVK"]
[SourceTitle "playchess.com"]
[Source "ChessBase"]
[SourceQuality "1"]
[TimeControl "40/5400+30:1800+30"]

1. d4 {[%emt 0:00:00]} Nf6 {[%emt 0:00:44]} 2. c4 {[%emt 0:00:08]} g6 {[%emt 0:00:22]} 3. Nc3 {[%emt 0:00:09]} Bg7 {[%emt 0:00:07]} 4. e4 {[%emt 0:00:42]} d6 {[%emt 0:00:10]} 5. Nf3 {[%emt 0:00:17]} O-O {[%emt 0:02:03]} 6. Be2 {[%emt 0:00:12]} Nbd7 {[%emt 0:00:25]} 7. O-O {[%emt 0:00:11]} e5 {[%emt 0:00:04]} 8. Qc2 {[%emt 0:04:02]} c6 {[%emt 0:02:19]} 9. Rd1 {[%emt 0:10:34]} Qe7 {[%emt 0:00:40]} 10. dxe5 {[%emt 0:09:14]} dxe5 {[%emt 0:00:22]} 11. a3 {[%emt 0:00:30]} Re8 {[%emt 0:33:09]} 12. b4 {[%emt 0:08:39]} b6 {[%emt 0:02:44]} 13. h3 {[%emt 0:02:45]} Nh5 {[%emt 0:08:28]} 14. Be3 {[%emt 0:06:14]} Nf4 {[%emt 0:00:45]} 15. Bf1 {[%emt 0:00:27]} Qf6 {[%emt 0:01:45]} 16. g3 {[%emt 0:04:04]} Ne6 {[%emt 0:02:39]} 17. Bg2 {[%emt 0:00:50]} Ndf8 {[%emt 0:03:47]} 18. c5 {[%emt 0:06:26]} bxc5 {[%emt 0:00:55]} 19. bxc5 {[%emt 0:00:08]} Rd8 {[%emt 0:13:27]} 20. Qa4 {[%emt 0:09:48]} Bd7 {[%emt 0:09:55]} 21. Rd6 {[%emt 0:08:02]} Qe7 {[%emt 0:00:20]} 22. Rad1 {[%emt 0:01:43]} h6 {[%emt 0:08:08]} 23. Kh2 {[%emt 0:07:50]} Be8 {[%emt 0:00:44]} 24. Qa5 {[%emt 0:00:58]} Rdb8 {[%emt 0:01:09]} 25. h4 {[%emt 0:02:27]} f5 {[%emt 0:02:28]} 26. Ne2 {[%emt 0:04:15]} Qf7 {[%emt 0:02:00]} 27. Qd2 {[%emt 0:00:46]} f4 {[%emt 0:00:54]} 28. gxf4 {[%emt 0:00:44]} exf4 {[%emt 0:00:01]} 29. Bd4 {[%emt 0:01:54]} Bxd4 {[%emt 0:01:03]} 30. Nfxd4 {[%emt 0:03:22]} Nxc5 {[%emt 0:00:03]} 31. e5 {[%emt 0:00:11]} Nb3 {[%emt 0:03:08]} 32. Nxb3 {[%emt 0:02:10]} f3 {[%emt 0:00:26]} 33. Rf6 {[%emt 0:01:58]} Qxb3 34. Qxh6 Bf7 35. e6 Nxe6 1-0

[Event "Int SVK-ch GM 2020"]
[Site "Drienica"]
[Date "2020.08.10"]
[Round "4.2"]
[White "Kostolansky, Sebastian Lukas"]
[Black "Pechac, Jergus"]
[Result "0-1"]
[ECO "C65"]
[WhiteElo "2402"]
[BlackElo "2498"]
[Annotator "ChessBase"]
[PlyCount "142"]
[EventDate "2020.08.07"]
[EventType "tourn"]
[EventCountry "SVK"]
[SourceTitle "playchess.com"]
[Source "ChessBase"]
[SourceQuality "1"]
[TimeControl "40/5400+30:1800+30"]

1. e4 {[%emt 0:00:00]} e5 {[%emt 0:00:00]} 2. Nf3 {[%emt 0:00:00]} Nc6 {[%emt 0:00:00]} 3. Bb5 {[%emt 0:00:08]} Nf6 {[%emt 0:00:00]} 4. d3 {[%emt 0:00:34]} Bc5 {[%emt 0:00:00]} 5. c3 {[%emt 0:00:05]} O-O {[%emt 0:00:03]} 6. O-O {[%emt 0:00:41]} d6 {[%emt 0:00:05]} 7. Nbd2 {[%emt 0:00:15]} Bb6 {[%emt 0:00:06]} 8. Nc4 {[%emt 0:02:48]} Ne7 {[%emt 0:00:09]} 9. Nxb6 {[%emt 0:06:41]} axb6 {[%emt 0:00:07]} 10. Re1 {[%emt 0:03:49]} c6 {[%emt 0:03:13]} 11. Bc4 {[%emt 0:02:20]} Ng6 {[%emt 0:05:45]} 12. d4 {[%emt 0:21:53]} Bg4 {[%emt 0:01:26]} 13. h3 {[%emt 0:01:58]} Bxf3 {[%emt 0:00:24]} 14. Qxf3 {[%emt 0:01:11]} exd4 {[%emt 0:00:09]} 15. cxd4 {[%emt 0:00:51]} Nxe4 {[%emt 0:00:25]} 16. Qxe4 {[%emt 0:05:34]} d5 {[%emt 0:00:04]} 17. Bxd5 {[%emt 0:03:16]} cxd5 {[%emt 0:02:49]} 18. Qf5 {[%emt 0:05:09]} Ne7 {[%emt 0:04:22]} 19. Qg4 {[%emt 0:06:11]} Nc6 {[%emt 0:00:09]} 20. Bd2 {[%emt 0:01:29]} Qd6 {[%emt 0:04:50]} 21. Bc3 {[%emt 0:05:14]} Rfe8 {[%emt 0:16:57]} 22. a3 {[%emt 0:03:43]} g6 {[%emt 0:04:25]} 23. Rxe8+ {[%emt 0:05:05]} Rxe8 {[%emt 0:00:06]} 24. Re1 {[%emt 0:00:10]} Rxe1+ {[%emt 0:00:18]} 25. Bxe1 {[%emt 0:00:05]} Qe6 {[%emt 0:00:06]} 26. Bc3 {[%emt 0:05:47]} Qxg4 {[%emt 0:01:51]} 27. hxg4 {[%emt 0:00:06]} b5 {[%emt 0:00:07]} 28. f3 {[%emt 0:01:23]} f6 {[%emt 0:00:10]} 29. Kf2 {[%emt 0:00:09]} Kf7 {[%emt 0:00:04]} 30. Ke3 {[%emt 0:04:58]} Ke6 {[%emt 0:00:15]} 31. Kf4 {[%emt 0:03:22]} h6 {[%emt 0:05:00]} 32. Kg3 {[%emt 0:02:57]} Kd7 {[%emt 0:02:26]} 33. Kf4 {[%emt 0:04:57]} Kc7 {[%emt 0:01:34]} 34. Ke3 {[%emt 0:01:06]} b4 {[%emt 0:02:57]} 35. Bd2 {[%emt 0:00:22]} bxa3 {[%emt 0:10:09]} 36. bxa3 {[%emt 0:00:05]} Kb6 {[%emt 0:00:08]} 37. Kd3 {[%emt 0:00:42]} g5 {[%emt 0:00:43]} 38. a4 {[%emt 0:02:09]} Ka6 {[%emt 0:01:19]} 39. Be1 {[%emt 0:00:42]} Kb6 {[%emt 0:08:46]} 40. Bd2 {[%emt 0:01:07]} Kc7 {[%emt 0:00:57]} 41. Kc3 {[%emt 0:09:22]} Kd6 {[%emt 0:00:15]} 42. Kd3 {[%emt 0:00:42]} Ke6 {[%emt 0:00:07]} 43. Ke3 {[%emt 0:03:10]} f5 {[%emt 0:05:04]} 44. gxf5+ {[%emt 0:03:19]} Kxf5 {[%emt 0:02:20]} 45. g4+ {[%emt 0:03:18]} Kg6 {[%emt 0:00:28]} 46. Bc3 {[%emt 0:01:49]} h5 {[%emt 0:00:21]} 47. Kf2 {[%emt 0:00:50]} h4 {[%emt 0:03:39]} 48. Ke3 {[%emt 0:08:17]} Kf6 {[%emt 0:12:15]} 49. Be1 {[%emt 0:01:21]} Nd8 {[%emt 0:00:25]} 50. Bb4 {[%emt 0:01:38]} Nc6 {[%emt 0:04:17]} 51. Bc3 {[%emt 0:01:04]} Ke7 {[%emt 0:11:22]} 52. Be1 {[%emt 0:01:07]} Kf7 {[%emt 0:03:09]} 53. Bc3 {[%emt 0:00:27]} Kf6 {[%emt 0:02:37]} 54. Be1 {[%emt 0:00:06]} Ke7 {[%emt 0:00:07]} 55. Bc3 {[%emt 0:00:47]} Nd8 {[%emt 0:00:24]} 56. Bb4+ {[%emt 0:01:06]} Kd7 {[%emt 0:00:07]} 57. Kf2 {[%emt 0:00:30]} Ne6 {[%emt 0:00:25]} 58. Bd2 {[%emt 0:00:28]} Kc6 {[%emt 0:01:22]} 59. Kg2 {[%emt 0:00:28]} b5 {[%emt 0:01:53]} 60. axb5+ Kxb5 {[%emt 0:00:08]} 61. Kh3 {[%emt 0:01:07]} Kc4 {[%emt 0:02:07]} 62. f4 {[%emt 0:00:14]} Nxf4+ {[%emt 0:00:38]} 63. Bxf4 {[%emt 0:00:06]} gxf4 {[%emt 0:00:04]} 64. g5 {[%emt 0:00:13]} f3 {[%emt 0:00:09]} 65. g6 {[%emt 0:00:22]} Kd3 {[%emt 0:00:06]} 66. g7 {[%emt 0:00:03]} f2 {[%emt 0:00:10]} 67. g8=Q {[%emt 0:00:25]} f1=Q+ {[%emt 0:00:06]} 68. Kh2 {[%emt 0:00:14]} Qf2+ {[%emt 0:00:08]} 69. Kh1 {[%emt 0:00:03]} Qe1+ {[%emt 0:00:05]} 70. Kg2 {[%emt 0:00:07]} Qg3+ {[%emt 0:00:07]} 71. Qxg3+ {[%emt 0:00:04]} hxg3 {[%emt 0:00:09]} 0-1

[Event "Int SVK-ch GM 2020"]
[Site "Drienica"]
[Date "2020.08.10"]
[Round "4.3"]
[White "Druska, Juraj"]
[Black "Petenyi, Tamas"]
[Result "0-1"]
[ECO "B00"]
[WhiteElo "2515"]
[BlackElo "2436"]
[Annotator "ChessBase"]
[PlyCount "88"]
[EventDate "2020.08.07"]
[EventType "tourn"]
[EventCountry "SVK"]
[SourceTitle "playchess.com"]
[Source "ChessBase"]
[SourceQuality "1"]
[TimeControl "40/5400+30:1800+30"]

1. e4 {[%emt 0:00:00]} Nc6 {[%emt 0:00:57]} 2. Nf3 {[%emt 0:05:21]} d6 {[%emt 0:00:40]} 3. d4 {[%emt 0:00:50]} Nf6 {[%emt 0:00:29]} 4. Nc3 {[%emt 0:04:16]} g6 {[%emt 0:00:24]} 5. Be3 {[%emt 0:07:07]} Bg7 {[%emt 0:01:28]} 6. Qd2 {[%emt 0:02:23]} Bg4 {[%emt 0:03:12]} 7. O-O-O {[%emt 0:04:45]} O-O {[%emt 0:09:50]} 8. Be2 {[%emt 0:02:11]} e5 {[%emt 0:12:46]} 9. d5 {[%emt 0:01:03]} Bxf3 {[%emt 0:05:45]} 10. Bxf3 {[%emt 0:01:38]} Nd4 {[%emt 0:00:24]} 11. Be2 {[%emt 0:11:21]} c6 {[%emt 0:03:40]} 12. dxc6 {[%emt 0:09:50]} bxc6 {[%emt 0:00:12]} 13. Bxd4 {[%emt 0:03:33]} exd4 {[%emt 0:00:12]} 14. Qxd4 {[%emt 0:00:22]} Nd5 {[%emt 0:03:43]} 15. Qxg7+ {[%emt 0:02:40]} Kxg7 {[%emt 0:00:02]} 16. exd5 {[%emt 0:00:08]} c5 {[%emt 0:01:26]} 17. h4 {[%emt 0:01:42]} Rb8 {[%emt 0:02:10]} 18. Rd3 {[%emt 0:01:34]} Re8 {[%emt 0:03:46]} 19. Rf3 {[%emt 0:04:14]} Qa5 {[%emt 0:04:15]} 20. Bc4 {[%emt 0:02:59]} Rb4 {[%emt 0:04:05]} 21. b3 {[%emt 0:02:33]} Rxc4 {[%emt 0:04:45]} 22. bxc4 {[%emt 0:00:02]} Qb4 {[%emt 0:00:17]} 23. g3 {[%emt 0:02:49]} Qxc4 {[%emt 0:01:15]} 24. Rd1 {[%emt 0:00:06]} Qb4 {[%emt 0:01:58]} 25. Rdd3 {[%emt 0:02:48]} Re1+ {[%emt 0:04:41]} 26. Rd1 {[%emt 0:07:14]} Re5 {[%emt 0:03:56]} 27. Rdd3 {[%emt 0:01:25]} Re1+ {[%emt 0:01:24]} 28. Rd1 {[%emt 0:00:07]} Re7 {[%emt 0:00:12]} 29. Rdd3 {[%emt 0:01:00]} a5 {[%emt 0:08:11]} 30. a4 {[%emt 0:03:37]} Qa3+ {[%emt 0:04:49]} 31. Kd2 {[%emt 0:00:10]} Re5 {[%emt 0:01:22]} 32. Rde3 {[%emt 0:04:02]} Qb4 {[%emt 0:02:04]} 33. Rf4 {[%emt 0:00:45]} Rxd5+ {[%emt 0:00:47]} 34. Ke2 {[%emt 0:02:18]} Rd4 {[%emt 0:00:39]} 35. Rff3 {[%emt 0:00:01]} Qb7 {[%emt 0:04:04]} 36. Kf1 {[%emt 0:03:34]} d5 {[%emt 0:02:04]} 37. Kg2 {[%emt 0:00:38]} Rd2 {[%emt 0:01:05]} 38. Nb5 {[%emt 0:03:04]} Qd7 {[%emt 0:00:22]} 39. c3 {[%emt 0:00:23]} Ra2 {[%emt 0:00:49]} 40. Rf4 {[%emt 0:00:05]} d4 {[%emt 0:02:57]} 41. cxd4 {[%emt 0:09:26]} Rxa4 {[%emt 0:00:54]} 42. Nc3 {[%emt 0:01:02]} Rxd4 {[%emt 0:00:25]} 43. Rff3 {[%emt 0:00:16]} Qb7 {[%emt 0:00:59]} 44. Re5 {[%emt 0:10:32]} Rd3 {[%emt 0:01:25]} 0-1

[Event "Int SVK-ch GM 2020"]
[Site "Drienica"]
[Date "2020.08.10"]
[Round "4.4"]
[White "Mazur, Stefan"]
[Black "Jablonicky, Martin"]
[Result "1/2-1/2"]
[ECO "C48"]
[WhiteElo "2449"]
[BlackElo "2314"]
[Annotator "ChessBase"]
[PlyCount "119"]
[EventDate "2020.08.07"]
[EventType "tourn"]
[EventCountry "SVK"]
[SourceTitle "playchess.com"]
[Source "ChessBase"]
[SourceQuality "1"]
[TimeControl "40/5400+30:1800+30"]

1. e4 {[%emt 0:00:00]} e5 {[%emt 0:02:54]} 2. Nf3 {[%emt 0:00:00]} Nf6 {[%emt 0:00:05]} 3. Nc3 {[%emt 0:01:37]} Nc6 {[%emt 0:00:06]} 4. Bb5 {[%emt 0:00:14]} Nd4 {[%emt 0:00:05]} 5. O-O {[%emt 0:00:24]} Nxb5 {[%emt 0:00:21]} 6. Nxb5 {[%emt 0:00:07]} c6 {[%emt 0:00:08]} 7. Nc3 {[%emt 0:00:05]} d6 {[%emt 0:00:04]} 8. d4 {[%emt 0:00:28]} Qc7 {[%emt 0:00:05]} 9. Bg5 {[%emt 0:01:20]} Be7 {[%emt 0:04:34]} 10. h3 {[%emt 0:01:32]} O-O {[%emt 0:00:08]} 11. a4 {[%emt 0:01:00]} h6 {[%emt 0:05:09]} 12. Bxf6 {[%emt 0:03:28]} Bxf6 {[%emt 0:00:08]} 13. d5 {[%emt 0:00:17]} Be7 {[%emt 0:11:04]} 14. Qd3 {[%emt 0:01:22]} Kh8 {[%emt 0:02:50]} 15. Rad1 {[%emt 0:04:16]} f5 {[%emt 0:04:07]} 16. Nxe5 {[%emt 0:02:13]} dxe5 {[%emt 0:00:08]} 17. d6 {[%emt 0:00:27]} Bxd6 {[%emt 0:00:05]} 18. Qxd6 {[%emt 0:00:18]} Qxd6 {[%emt 0:00:17]} 19. Rxd6 {[%emt 0:00:09]} fxe4 {[%emt 0:00:48]} 20. Nd1 {[%emt 0:19:38]} Bf5 {[%emt 0:15:30]} 21. Ne3 {[%emt 0:00:15]} Rf7 {[%emt 0:02:48]} 22. g4 {[%emt 0:13:32]} Bh7 {[%emt 0:00:30]} 23. Rfd1 {[%emt 0:01:39]} Raf8 {[%emt 0:01:35]} 24. R1d2 {[%emt 0:00:30]} Bg8 {[%emt 0:12:43]} 25. a5 {[%emt 0:04:35]} a6 {[%emt 0:01:23]} 26. c4 {[%emt 0:04:57]} Kh7 {[%emt 0:00:14]} 27. b4 {[%emt 0:07:04]} g6 {[%emt 0:09:16]} 28. h4 {[%emt 0:07:57]} Re7 {[%emt 0:03:36]} 29. b5 {[%emt 0:03:33]} axb5 {[%emt 0:04:35]} 30. cxb5 {[%emt 0:00:12]} cxb5 {[%emt 0:00:33]} 31. Rb6 {[%emt 0:00:12]} Bc4 {[%emt 0:02:25]} 32. Rdd6 {[%emt 0:02:34]} Rg7 {[%emt 0:02:46]} 33. Kg2 {[%emt 0:04:14]} h5 {[%emt 0:01:48]} 34. g5 {[%emt 0:09:43]} Ra8 {[%emt 0:01:21]} 35. Nd5 {[%emt 0:05:19]} Bxd5 {[%emt 0:00:06]} 36. Rxd5 {[%emt 0:00:04]} Rxa5 {[%emt 0:00:04]} 37. Rxe5 {[%emt 0:00:06]} Ra2 {[%emt 0:03:20]} 38. Rf6 {[%emt 0:01:30]} Ra6 {[%emt 0:08:27]} 39. Rf8 {[%emt 0:01:08]} Rb6 {[%emt 0:00:19]} 40. Rxe4 {[%emt 0:01:11]} b4 {[%emt 0:00:37]} 41. Rff4 {[%emt 0:05:40]} b3 {[%emt 0:03:59]} 42. Rb4 {[%emt 0:00:31]} Rxb4 {[%emt 0:00:41]} 43. Rxb4 {[%emt 0:00:02]} Rf7 {[%emt 0:00:12]} 44. Rxb3 {[%emt 0:01:05]} Kg7 {[%emt 0:00:13]} 45. Kg3 {[%emt 0:00:56]} Kh7 {[%emt 0:00:18]} 46. f4 {[%emt 0:01:30]} Kg7 {[%emt 0:02:10]} 47. Kf3 {[%emt 0:00:07]} Kh7 {[%emt 0:01:03]} 48. Rb5 {[%emt 0:00:38]} Kg7 {[%emt 0:03:12]} 49. Rb6 {[%emt 0:00:25]} Rc7 {[%emt 0:01:34]} 50. Ke4 {[%emt 0:01:17]} Re7+ {[%emt 0:00:59]} 51. Kd5 {[%emt 0:02:38]} Rf7 {[%emt 0:00:16]} 52. Rb4 {[%emt 0:01:30]} Rf5+ {[%emt 0:03:37]} 53. Kd6 {[%emt 0:01:29]} b5 {[%emt 0:00:15]} 54. Ke6 {[%emt 0:01:04]} Kg8 {[%emt 0:00:56]} 55. Rd4 {[%emt 0:00:20]} Kg7 {[%emt 0:00:08]} 56. Rd7+ {[%emt 0:01:32]} Kg8 {[%emt 0:00:07]} 57. Rb7 {[%emt 0:00:32]} Rxf4 {[%emt 0:00:19]} 58. Rxb5 {[%emt 0:00:29]} Kg7 {[%emt 0:01:12]} 59. Rb7+ {[%emt 0:00:06]} Kg8 {[%emt 0:00:05]} 60. Rb8+ 1/2-1/2

[Event "Int SVK-ch GM 2020"]
[Site "Drienica"]
[Date "2020.08.10"]
[Round "4.5"]
[White "Nayhebaver, Martin"]
[Black "Mrva, Martin"]
[Result "1-0"]
[ECO "C67"]
[WhiteElo "2482"]
[BlackElo "2386"]
[Annotator "ChessBase"]
[PlyCount "65"]
[EventDate "2020.08.07"]
[EventType "tourn"]
[EventCountry "SVK"]
[SourceTitle "playchess.com"]
[Source "ChessBase"]
[SourceQuality "1"]
[TimeControl "40/5400+30:1800+30"]

1. e4 {[%emt 0:00:00]} e5 {[%emt 0:00:00]} 2. Nf3 {[%emt 0:00:02]} Nc6 {[%emt 0:00:00]} 3. Bb5 {[%emt 0:00:25]} Nf6 {[%emt 0:00:00]} 4. O-O {[%emt 0:01:21]} Nxe4 {[%emt 0:00:04]} 5. Re1 {[%emt 0:01:23]} Nd6 {[%emt 0:00:41]} 6. Nxe5 {[%emt 0:00:32]} Be7 {[%emt 0:00:22]} 7. Bf1 {[%emt 0:00:32]} Nf5 {[%emt 0:07:58]} 8. c3 {[%emt 0:31:51]} Nxe5 {[%emt 0:06:37]} 9. Rxe5 {[%emt 0:00:06]} d6 {[%emt 0:00:06]} 10. Re1 {[%emt 0:00:40]} O-O {[%emt 0:00:18]} 11. d4 {[%emt 0:00:31]} d5 {[%emt 0:01:05]} 12. Bd3 {[%emt 0:01:33]} Bd6 {[%emt 0:01:59]} 13. Nd2 {[%emt 0:03:57]} Nh4 {[%emt 0:17:32]} 14. g3 {[%emt 0:04:43]} Qf6 {[%emt 0:32:47]} 15. gxh4 {[%emt 0:14:44]} Bxh2+ {[%emt 0:01:06]} 16. Kh1 {[%emt 0:00:14]} Bd6 {[%emt 0:05:17]} 17. Qh5 {[%emt 0:04:37]} g6 {[%emt 0:10:03]} 18. Qg5 {[%emt 0:00:28]} Qxf2 {[%emt 0:00:17]} 19. Re2 {[%emt 0:00:09]} Qg3 {[%emt 0:00:10]} 20. Qxg3 {[%emt 0:02:42]} Bxg3 {[%emt 0:00:06]} 21. Nf3 {[%emt 0:03:21]} Bg4 {[%emt 0:00:48]} 22. Kg2 {[%emt 0:00:07]} Bxf3+ {[%emt 0:00:12]} 23. Kxf3 {[%emt 0:00:08]} Bxh4 {[%emt 0:00:05]} 24. Bf4 {[%emt 0:00:11]} Rac8 {[%emt 0:04:34]} 25. Rh1 {[%emt 0:03:03]} Bf6 {[%emt 0:00:06]} 26. Reh2 {[%emt 0:00:30]} c5 {[%emt 0:01:41]} 27. dxc5 {[%emt 0:00:58]} Rfd8 {[%emt 0:00:07]} 28. Bd6 {[%emt 0:00:57]} b6 {[%emt 0:00:32]} 29. Ba6 {[%emt 0:01:23]} Rxc5 {[%emt 0:02:35]} 30. Bxc5 {[%emt 0:00:16]} bxc5 {[%emt 0:00:04]} 31. Rxh7 {[%emt 0:00:49]} Rb8 {[%emt 0:00:10]} 32. R7h2 {[%emt 0:00:29]} c4 {[%emt 0:00:06]} 33. Rd1 {[%emt 0:00:24]} 1-0

[Event "Int SVK-ch GM 2020"]
[Site "Drienica"]
[Date "2020.08.11"]
[Round "5.1"]
[White "Mrva, Martin"]
[Black "Gazik, Viktor"]
[Result "0-1"]
[ECO "B10"]
[WhiteElo "2386"]
[BlackElo "2502"]
[Annotator "ChessBase"]
[PlyCount "76"]
[EventDate "2020.08.07"]
[EventType "tourn"]
[EventCountry "SVK"]
[SourceTitle "playchess.com"]
[Source "ChessBase"]
[SourceQuality "1"]
[TimeControl "40/5400+30:1800+30"]

1. e4 {[%emt 0:00:00]} c6 {[%emt 0:00:00]} 2. Nc3 {[%emt 0:01:24]} d5 {[%emt 0:00:00]} 3. Nf3 {[%emt 0:00:06]} Nf6 {[%emt 0:00:00]} 4. Qe2 {[%emt 0:01:11]} Bg4 {[%emt 0:05:46]} 5. exd5 {[%emt 0:13:38]} Nxd5 {[%emt 0:15:14]} 6. h3 {[%emt 0:09:54]} Bf5 {[%emt 0:07:50]} 7. d3 {[%emt 0:07:28]} Nd7 {[%emt 0:03:59]} 8. Nxd5 {[%emt 0:09:52]} cxd5 {[%emt 0:00:09]} 9. Nd4 {[%emt 0:00:24]} Bg6 {[%emt 0:02:16]} 10. h4 {[%emt 0:00:11]} Qb6 {[%emt 0:08:34]} 11. c3 {[%emt 0:05:15]} f6 {[%emt 0:05:27]} 12. Be3 {[%emt 0:15:46]} e5 {[%emt 0:08:22]} 13. h5 {[%emt 0:00:40]} Bf7 {[%emt 0:00:05]} 14. Nf5 {[%emt 0:00:09]} d4 {[%emt 0:04:00]} 15. Bc1 {[%emt 0:08:45]} Be6 {[%emt 0:06:28]} 16. Qf3 {[%emt 0:01:00]} Rc8 {[%emt 0:02:16]} 17. Be2 {[%emt 0:03:43]} dxc3 {[%emt 0:06:05]} 18. bxc3 {[%emt 0:03:03]} Rxc3 {[%emt 0:02:13]} 19. O-O {[%emt 0:00:34]} g6 {[%emt 0:02:03]} 20. Ng3 {[%emt 0:02:15]} f5 {[%emt 0:01:09]} 21. Bg5 {[%emt 0:05:39]} Be7 {[%emt 0:05:25]} 22. Bh6 {[%emt 0:06:46]} Qc6 {[%emt 0:05:54]} 23. Rac1 {[%emt 0:00:16]} Rxc1 {[%emt 0:04:34]} 24. Rxc1 {[%emt 0:00:07]} Qxf3 {[%emt 0:00:02]} 25. Bxf3 {[%emt 0:00:11]} Kf7 {[%emt 0:00:51]} 26. Rc7 {[%emt 0:00:22]} Rb8 {[%emt 0:01:50]} 27. Bxb7 {[%emt 0:02:47]} Bd8 {[%emt 0:01:58]} 28. Rc8 {[%emt 0:00:03]} Rxc8 {[%emt 0:00:03]} 29. Bxc8 {[%emt 0:00:07]} g5 {[%emt 0:01:19]} 30. Ne2 {[%emt 0:01:28]} Bf6 {[%emt 0:00:26]} 31. g4 {[%emt 0:00:33]} fxg4 {[%emt 0:00:33]} 32. Nc3 {[%emt 0:00:16]} Nc5 {[%emt 0:00:18]} 33. Ne4 {[%emt 0:00:16]} Nxd3 {[%emt 0:00:48]} 34. Bxg5 {[%emt 0:02:08]} Bxc8 {[%emt 0:00:10]} 35. Nxf6 {[%emt 0:00:39]} Bf5 {[%emt 0:00:37]} 36. Nd5 {[%emt 0:00:25]} Be6 {[%emt 0:00:29]} 37. Nc3 {[%emt 0:00:14]} Nf4 {[%emt 0:00:04]} 38. h6 {[%emt 0:00:30]} Nh3+ {[%emt 0:00:10]} 0-1